bitfinex/quotes_SOLUSD_20241215
["timestamp","ask_amount","ask_price","bid_price","bid_amount"]
[1734305963633,0.83578071,224.36,224.27,23.776884]
[1734305964139,20.0,224.34,224.27,23.776884]
[1734305964441,20.0,224.34,224.26,0.65672237]
[1734305964732,20.0,224.34,224.27,23.776884]
[1734305965101,0.83580386,224.33,224.25,23.776884]
[1734305967741,6.5296,224.37,224.27,23.776884]
[1734305968035,6.5296,224.37,224.29,23.776884]
[1734305968220,6.5296,224.37,224.3,0.65652108]
[1734305968413,6.5296,224.37,224.29,23.776884]
[1734305968918,6.5296,224.37,224.3,0.65653527]
[1734305969520,6.5296,224.37,224.29,23.776884]
[1734305969722,6.5296,224.37,224.31,23.776884]
[1734305971228,20.0,224.38,224.31,23.776884]
[1734305971943,7.23041087,224.41,224.31,23.776884]
[1734305974518,0.5474998,224.43,224.33,23.776884]
[1734305974745,0.5474998,224.43,224.34,0.65621958]
[1734305975150,0.5474998,224.43,224.35,23.776884]
[1734305975329,0.5474998,224.43,224.37,23.776884]
[1734305977245,0.5474998,224.43,224.33,0.6559155]
[1734305977434,0.5474998,224.43,224.34,23.776884]
[1734305977644,0.5474998,224.43,224.35,0.65614222]
[1734305978042,0.5474998,224.43,224.36,23.776884]
[1734305978255,0.5474998,224.43,224.38,23.776884]
[1734305978552,0.5474998,224.43,224.4,23.776884]
[1734305978853,0.5474998,224.43,224.35,0.6557603]
[1734305979057,0.5474998,224.43,224.36,23.776884]
[1734305979734,0.5474998,224.43,224.38,23.776884]
[1734305980137,0.5474998,224.43,224.4,23.776884]
[1734305980753,0.5474998,224.43,224.4,24.43266323]
[1734305981222,0.5474998,224.43,224.4,23.776884]
[1734305981422,0.5474998,224.43,224.37,23.776884]
[1734305982125,0.5474998,224.43,224.36,23.902374]
[1734305982339,0.5474998,224.43,224.32,2.60846092]
[1734305982528,0.5474998,224.43,224.33,0.65618958]
[1734305983040,0.2474998,224.43,224.33,0.65618958]
[1734305983655,0.2474998,224.43,224.34,23.776884]
[1734305984327,0.2474998,224.43,224.35,0.65608525]
[1734305984533,0.2474998,224.43,224.36,23.776884]
[1734305985452,0.2474998,224.43,224.38,23.776884]
[1734305986671,0.2474998,224.43,224.32,23.902374]
[1734305987171,0.2474998,224.43,224.32,0.65626565]
[1734305987897,0.2474998,224.43,224.35,20.0]
[1734305988084,0.2474998,224.43,224.36,0.65596924]
[1734305988272,0.2474998,224.43,224.36,20.65596924]
[1734305988471,0.2474998,224.43,224.37,23.776884]
[1734305989700,0.2474998,224.43,224.38,0.12549]
[1734305989999,0.2474998,224.43,224.39,23.776884]
[1734305991284,0.2474998,224.43,224.41,23.776884]
[1734305991622,0.2474998,224.43,224.42,24.4324013]
[1734305992309,0.2474998,224.43,224.42,26.0918013]
[1734305993017,0.2474998,224.43,224.42,37.9280863]
[1734305993188,0.2474998,224.43,224.42,26.2172913]
[1734305993586,0.2474998,224.43,224.42,37.9280863]
[1734305994283,0.2474998,224.43,224.42,26.3427813]
[1734305995085,0.2474998,224.43,224.42,26.2172913]
[1734305995694,0.2474998,224.43,224.42,38.0535763]
[1734305996012,0.2474998,224.43,224.42,46.05386823]
[1734305996216,0.2474998,224.43,224.42,52.15336823]
[1734305996379,0.2474998,224.43,224.42,50.37227854]
[1734305996811,0.2474998,224.43,224.42,52.15334358]
[1734305997602,0.2474998,224.43,224.42,50.37227854]
[1734305997810,0.2474998,224.43,224.42,52.15333495]
[1734305998116,9.98e-05,224.43,224.42,57.68820146]
[1734306000027,9.98e-05,224.43,224.42,16.41467595]
[1734306000315,9.98e-05,224.43,224.42,28.12547095]
[1734306000492,9.98e-05,224.43,224.42,26.46990454]
[1734306000697,9.98e-05,224.43,224.42,28.25099446]
[1734306001282,9.98e-05,224.43,224.42,52.15336846]
[1734306001784,0.83492917,224.6,224.47,20.0]
[1734306002007,0.83492917,224.6,224.48,0.65516351]
[1734306002490,0.83492917,224.6,224.47,20.0]
[1734306002687,0.83492917,224.6,224.47,20.65511269]
[1734306003481,0.83492917,224.6,224.47,0.65511269]
[1734306003787,0.83492917,224.6,224.49,23.776884]
[1734306004011,0.83492917,224.6,224.48,23.776884]
[1734306004515,0.83492917,224.6,224.49,0.12549]
[1734306004819,7.6749,224.61,224.5,23.776884]
[1734306005323,0.83485906,224.6,224.48,23.776884]
[1734306005636,7.6749,224.61,224.52,23.776884]
[1734306006518,0.83488081,224.6,224.52,23.776884]
[1734306006689,0.83488081,224.6,224.47,0.65493009]
[1734306006889,0.83488081,224.6,224.44,1.78088162]
[1734306007107,0.25098,224.59,224.42,1.78088162]
[1734306007321,0.83525921,224.58,224.39,13.49167662]
[1734306007532,0.83525921,224.58,224.4,2.4364676]
[1734306007692,20.0,224.56,224.39,1.78088162]
[1734306007898,7.9847,224.54,224.37,1.626]
[1734306008201,0.83541698,224.53,224.37,1.626]
[1734306008400,0.83541698,224.53,224.37,12.36679048]
[1734306009128,0.83541698,224.53,224.41,20.0]
[1734306009423,0.83541698,224.53,224.42,0.65563554]
[1734306009628,7.9847,224.54,224.45,20.0]
[1734306010124,0.8351402,224.53,224.38,23.776884]
[1734306010337,0.8351402,224.53,224.34,11.710795]
[1734306010623,0.12549,224.52,224.32,20.50135]
[1734306010825,0.12549,224.52,224.33,11.710795]
[1734306010826,0.12549,224.5,224.33,11.710795]
[1734306010995,0.12549,224.5,224.34,0.65606553]
[1734306011401,0.83547506,224.49,224.34,0.65606553]
[1734306011694,0.83547506,224.49,224.36,20.0]
[1734306012100,0.83547506,224.49,224.37,24.43297754]
[1734306012331,0.83547506,224.49,224.37,23.776884]
[1734306014106,0.83544452,224.5,224.4,20.0]
[1734306014305,7.9847,224.54,224.41,23.776884]
[1734306014306,0.83528504,224.53,224.41,23.776884]
[1734306014509,0.83528504,224.53,224.42,0.65554591]
[1734306014709,0.83528504,224.53,224.43,23.776884]
[1734306015415,0.83517192,224.58,224.47,23.776884]
[1734306018105,0.83517192,224.58,224.48,0.65520301]
[1734306018331,0.83517192,224.58,224.49,23.776884]
[1734306018526,7.7816,224.59,224.49,23.776884]
[1734306018946,6.221,224.59,224.5,0.65494393]
[1734306019118,6.221,224.59,224.51,23.776884]
[1734306021450,0.83490404,224.58,224.4,2.71774582]
[1734306021739,0.83490404,224.58,224.41,12.36571735]
[1734306022039,0.83490404,224.58,224.42,0.12549]
[1734306022222,0.83490404,224.58,224.43,0.65536354]
[1734306022742,0.83490404,224.58,224.44,23.776884]
[1734306022944,0.83490404,224.58,224.46,23.776884]
[1734306026537,0.83490404,224.58,224.42,0.12549]
[1734306026538,0.83490404,224.58,224.44,23.776884]
[1734306027551,0.83490404,224.58,224.43,23.776884]
[1734306027754,0.83490404,224.58,224.45,23.776884]
[1734306028609,0.83490404,224.58,224.44,0.65536924]
[1734306029014,0.83490404,224.58,224.45,23.776884]
[1734306029752,0.83490404,224.58,224.48,20.0]
[1734306031043,0.83490404,224.58,224.49,23.776884]
[1734306031845,6.221,224.59,224.51,23.776884]
[1734306032340,0.83497014,224.58,224.48,20.0]
[1734306032540,0.83497014,224.58,224.51,20.0]
[1734306032958,0.83497014,224.58,224.48,23.776884]
[1734306033255,0.83497014,224.58,224.41,11.710795]
[1734306033425,0.83497014,224.58,224.43,0.65545613]
[1734306033614,0.83497014,224.58,224.42,0.65541283]
[1734306034223,0.83497014,224.58,224.41,1.78110414]
[1734306034446,0.83497014,224.58,224.44,20.0]
[1734306034945,0.83497014,224.58,224.45,23.776884]
[1734306038754,6.80489,224.57,224.41,20.0]
[1734306039051,2.34752198,224.56,224.42,25.55791471]
[1734306039232,2.34752198,224.56,224.43,1.78103071]
[1734306039551,2.34752198,224.56,224.38,12.9261976]
[1734306039848,2.34752198,224.56,224.39,1.78125445]
[1734306040229,0.12549,224.55,224.38,3.56595205]
[1734306040552,0.83539318,224.54,224.37,0.6554574]
[1734306040852,0.83539318,224.54,224.38,20.0]
[1734306041059,0.83539318,224.54,224.39,1.78125445]
[1734306041217,0.83539318,224.54,224.41,20.0]
[1734306041422,0.8351855,224.53,224.44,23.776884]
[1734306041735,0.83517604,224.55,224.44,23.776884]
[1734306043459,1.5122,224.56,224.43,20.65545888]
[1734306043460,1.5122,224.56,224.46,23.776884]
[1734306043759,6.221,224.59,224.48,23.776884]
[1734306043929,6.221,224.59,224.5,23.776884]
[1734306046225,1.5394,224.61,224.53,20.0]
[1734306048134,1.5394,224.61,224.52,23.776884]
[1734306048333,1.5394,224.61,224.5,23.776884]
[1734306049565,1.5394,224.61,224.53,20.0]
[1734306051448,7.59081285,224.65,224.53,20.0]
[1734306053270,7.59081285,224.65,224.54,23.776884]
[1734306053872,7.59081285,224.65,224.53,20.0]
[1734306054367,7.59081285,224.65,224.49,0.65472665]
[1734306054368,7.59081285,224.65,224.52,23.776884]
[1734306055265,7.59081285,224.65,224.51,20.0]
[1734306055652,0.12549,224.64,224.51,20.0]
[1734306055853,0.12549,224.64,224.44,11.1384]
[1734306055854,0.83502684,224.63,224.44,11.1384]
[1734306056167,0.83502684,224.63,224.44,12.91908027]
[1734306056477,0.12549,224.62,224.44,11.1384]
[1734306056773,0.83511119,224.61,224.44,11.1384]
[1734306057364,1.5878,224.6,224.44,11.1384]
[1734306057550,0.83507316,224.59,224.44,11.1384]
[1734306057756,6.2315,224.58,224.43,1.78068027]
[1734306057955,6.2315,224.58,224.36,4.30681296]
[1734306057956,1.5878,224.51,224.31,1.6275]
[1734306058271,6.57795658,224.5,224.32,1.78136526]
[1734306058450,6.57795658,224.5,224.3,13.49216026]
[1734306058651,6.57795658,224.5,224.31,1.78136526]
[1734306058852,6.57795658,224.5,224.3,11.710795]
[1734306058853,6.57795658,224.5,224.3,13.49216026]
[1734306059057,6.57795658,224.5,224.3,1.78136526]
[1734306059267,13.25945658,224.5,224.3,13.49216026]
[1734306059455,13.25945658,224.5,224.33,20.0]
[1734306059652,13.13396658,224.5,224.35,23.776884]
[1734306059852,0.12549,224.49,224.34,20.0]
[1734306060050,0.83556945,224.48,224.34,20.0]
[1734306060458,0.83556945,224.48,224.35,0.65626235]
[1734306060742,0.83556945,224.48,224.34,31.710795]
[1734306060887,5.61695755,224.49,224.44,0.12549]
[1734306061055,0.83493828,224.6,224.5,20.0]
[1734306061251,14.40275013,224.65,224.47,11.710795]
[1734306061252,0.83490712,224.62,224.52,20.0]
[1734306061455,0.83490712,224.62,224.5,20.0]
[1734306062072,0.83490712,224.62,224.51,23.776884]
[1734306062271,0.83496335,224.61,224.51,23.776884]
[1734306062476,0.83495879,224.64,224.51,23.776884]
[1734306062982,0.83495879,224.64,224.52,1.78066618]
[1734306063687,0.83495879,224.64,224.52,1.780634]
[1734306063978,0.83495879,224.64,224.51,1.780634]
[1734306064877,0.83495879,224.64,224.5,23.776884]
[1734306065090,0.83495879,224.64,224.49,23.776884]
[1734306065396,0.83495879,224.64,224.5,1.78066898]
[1734306065570,0.83495879,224.64,224.51,23.776884]
[1734306065771,0.83495879,224.64,224.49,23.776884]
[1734306066003,0.83495879,224.64,224.51,23.776884]
[1734306066173,0.83495879,224.64,224.49,23.776884]
[1734306067199,0.12549,224.63,224.49,23.776884]
[1734306067370,0.83504537,224.62,224.49,23.776884]
[1734306068394,1.71329,224.61,224.45,43.776884]
[1734306068605,0.83514196,224.6,224.45,23.776884]
[1734306068791,6.0382,224.59,224.47,23.776884]
[1734306068999,0.83511979,224.58,224.47,23.776884]
[1734306069294,0.83511979,224.58,224.45,23.776884]
[1734306069498,0.83511979,224.58,224.47,23.776884]
[1734306069806,0.83511979,224.58,224.47,24.43223604]
[1734306069984,0.83511979,224.58,224.46,23.776884]
[1734306070192,0.83511979,224.58,224.48,23.776884]
[1734306072606,0.83511979,224.58,224.47,0.65523279]
[1734306072607,0.83511979,224.58,224.45,20.0]
[1734306072787,0.83511979,224.58,224.43,20.0]
[1734306072986,0.83511979,224.58,224.44,1.78115889]
[1734306073673,0.83511979,224.58,224.43,20.65553907]
[1734306073872,0.83511979,224.58,224.44,23.776884]
[1734306074279,0.83511979,224.58,224.45,0.65535472]
[1734306074606,0.83511979,224.58,224.43,23.776884]
[1734306075275,0.83511979,224.58,224.4,0.65535465]
[1734306075276,20.0,224.54,224.4,0.65535465]
[1734306075476,1.5878,224.52,224.38,1.78110668]
[1734306075674,1.5878,224.52,224.34,2.43759348]
[1734306075675,6.0382,224.5,224.34,2.43759348]
[1734306075875,0.83550442,224.49,224.34,0.65605502]
[1734306076306,0.83550442,224.49,224.38,11.710795]
[1734306076513,0.83518659,224.56,224.39,12.36628245]
[1734306077078,0.83518659,224.56,224.43,23.776884]
[1734306077282,0.83518659,224.56,224.43,24.43234992]
[1734306080190,0.83518659,224.56,224.46,20.0]
[1734306080734,7.51498659,224.56,224.35,7.1207925]
[1734306080884,7.51498659,224.56,224.36,0.65588949]
[1734306081080,7.51498659,224.56,224.36,1.78142525]
[1734306081081,26.5914,224.47,224.36,1.78142525]
[1734306081382,26.5914,224.47,224.23,1.78142525]
[1734306081383,6.5914,224.4,224.23,1.78142525]
[1734306081584,0.83586122,224.39,224.18,1.78142525]
[1734306081802,0.83586122,224.39,224.17,1.6233]
[1734306081803,0.83586122,224.39,224.19,1.78142525]
[1734306082001,0.83586122,224.39,224.18,1.78142525]
[1734306082316,20.0,224.36,224.16,2.438655]
[1734306082479,0.83607425,224.35,224.16,2.62700642]
[1734306082685,6.6865,224.33,224.14,1.78142525]
[1734306082996,6.6865,224.33,224.1,9.89042525]
[1734306082997,20.0,224.29,224.1,9.89042525]
[1734306083216,0.83633808,224.28,224.11,0.12549]
[1734306083513,1.5013,224.27,224.08,1.78142525]
[1734306083818,1.5013,224.27,224.05,25.22910543]
[1734306083819,0.83643458,224.26,224.05,25.22910543]
[1734306083988,0.83643458,224.26,224.06,1.78370173]
[1734306084192,0.83643458,224.26,224.06,0.12549]
[1734306084608,0.83643458,224.26,224.05,25.22910543]
[1734306084783,0.83643458,224.26,224.08,20.0]
[1734306084996,0.83643458,224.26,224.06,20.0]
[1734306084997,6.93988,224.25,224.06,20.0]
[1734306085217,0.83654483,224.24,224.06,20.0]
[1734306085389,0.83654483,224.24,224.04,0.12549]
[1734306085590,0.83654483,224.24,224.03,19.40160936]
[1734306086095,0.83654483,224.24,224.05,18.74340543]
[1734306086298,0.83640568,224.23,224.06,24.56029964]
[1734306086487,21.5013,224.27,224.06,24.56029964]
[1734306086488,0.83640041,224.26,224.09,20.0]
[1734306086688,0.25098,224.25,224.09,20.0]
[1734306086914,0.25098,224.22,223.98,29.90480543]
[1734306087139,20.12549,224.2,223.99,1.78400672]
[1734306087303,20.0,224.18,223.99,1.78400672]
[1734306087502,0.83683364,224.17,223.97,2.44278827]
[1734306088025,0.83683364,224.17,223.98,18.74340543]
[1734306088238,20.0,224.2,224.0,0.12549]
[1734306088410,0.83667864,224.19,224.02,0.12549]
[1734306089411,8.82785164,224.23,224.04,53.80447943]
[1734306089412,0.83665334,224.22,224.04,53.80447943]
[1734306089637,7.42782675,224.23,224.13,20.0]
[1734306089941,7.42782675,224.23,224.15,23.776884]
[1734306089942,6.5914,224.23,224.15,23.776884]
[1734306090097,6.5914,224.23,224.14,0.65757041]
[1734306090098,6.1448,224.29,224.17,23.776884]
[1734306090304,6.1448,224.29,224.19,23.776884]
[1734306091629,0.83608692,224.28,224.13,11.154]
[1734306091813,0.83608692,224.28,224.16,20.0]
[1734306091999,0.83608692,224.28,224.17,43.776884]
[1734306093634,6.1448,224.29,224.19,23.776884]
[1734306094233,0.83606461,224.28,224.19,23.776884]
[1734306094436,0.83606461,224.28,224.18,23.776884]
[1734306096245,0.83606461,224.28,224.21,20.0]
[1734306098315,0.83610481,224.28,224.21,20.0]
[1734306098551,6.1448,224.29,224.21,23.776884]
[1734306098759,6.86530033,224.34,224.24,20.0]
[1734306098915,6.86530033,224.34,224.25,23.776884]
[1734306099116,6.0292,224.34,224.28,20.0]
[1734306099728,6.0292,224.34,224.25,20.0]
[1734306100117,6.0292,224.34,224.29,20.0]
[1734306100324,0.83586635,224.41,224.29,20.0]
[1734306100325,6.0921,224.4,224.29,20.0]
[1734306100518,0.83578357,224.39,224.29,20.0]
[1734306100721,6.92787488,224.4,224.3,24.43354804]
[1734306100958,0.83565144,224.39,224.3,23.776884]
[1734306102167,6.9277902,224.4,224.3,23.776884]
[1734306102340,6.0921,224.4,224.3,23.776884]
[1734306102541,6.0921,224.4,224.33,20.0]
[1734306102855,0.83564966,224.47,224.33,20.0]
[1734306102856,6.0921,224.46,224.34,23.776884]
[1734306103032,0.83557506,224.45,224.35,20.0]
[1734306103233,0.83557506,224.45,224.31,20.0]
[1734306103551,0.83557506,224.45,224.29,23.776884]
[1734306104129,6.6838,224.42,224.29,23.776884]
[1734306104328,6.6838,224.42,224.22,11.80610257]
[1734306104329,0.83584401,224.41,224.22,11.80610257]
[1734306104558,0.83584401,224.41,224.17,22.4035]
[1734306104559,0.83584401,224.41,224.24,23.776884]
[1734306105736,6.6844,224.4,224.24,23.776884]
[1734306105928,0.83594983,224.39,224.24,23.776884]
[1734306107944,0.83594983,224.39,224.22,23.902374]
[1734306108149,0.83594983,224.39,224.25,20.0]
[1734306108345,6.6853,224.37,224.18,8.1078]
[1734306108533,0.8360399,224.36,224.21,20.0]
[1734306109035,0.8360399,224.36,224.2,20.0]
[1734306109553,0.8360399,224.36,224.21,43.776884]
[1734306109954,6.6859,224.35,224.21,20.0]
[1734306110271,0.83605866,224.34,224.13,29.89730543]
[1734306110430,0.83605866,224.34,224.13,11.9539]
[1734306110626,0.83605866,224.34,224.13,12.93716575]
[1734306111238,0.83605866,224.34,224.13,11.1539]
[1734306111638,6.6865,224.33,224.14,0.12549]
[1734306111837,0.83620894,224.32,224.14,24.68539616]
[1734306112252,0.83620894,224.32,224.18,23.776884]
[1734306114333,0.83620894,224.32,224.19,0.12549]
[1734306114534,0.83603861,224.36,224.22,23.776884]
[1734306115335,0.83603861,224.36,224.14,20.0]
[1734306115336,20.18329,224.35,224.14,20.0]
[1734306115553,6.4289,224.33,224.15,20.07]
[1734306115858,0.83624475,224.32,224.15,20.07]
[1734306116358,0.83624475,224.32,224.15,20.0]
[1734306116569,1.5428,224.3,224.11,1.6008]
[1734306116740,1.5428,224.3,224.12,0.12549]
[1734306116741,0.83632603,224.29,224.12,0.12549]
[1734306116948,0.83632603,224.29,224.12,0.78328374]
[1734306117768,0.12549,224.25,224.02,1.509]
[1734306118068,0.96201784,224.25,224.05,0.12549]
[1734306118563,6.6892,224.24,224.04,5.12007689]
[1734306118768,0.83652431,224.23,224.04,5.12007689]
[1734306118939,0.83652431,224.23,224.05,0.19549]
[1734306119264,0.83652431,224.23,224.07,20.0]
[1734306119444,6.6039,224.21,224.05,0.07]
[1734306119766,0.83662924,224.2,224.02,3.95151406]
[1734306120354,0.83662924,224.2,224.03,0.12549]
[1734306120570,0.83662924,224.2,224.02,3.95151406]
[1734306120806,0.83662924,224.2,224.03,23.776884]
[1734306120951,0.83662924,224.2,224.06,20.0]
[1734306121147,0.83662924,224.2,224.07,23.776884]
[1734306122758,0.83662924,224.2,224.09,23.776884]
[1734306122959,0.83662924,224.2,224.07,23.776884]
[1734306123143,0.83662924,224.2,224.09,23.776884]
[1734306123350,0.83662924,224.2,224.07,23.776884]
[1734306123764,0.83662924,224.2,224.09,23.776884]
[1734306124070,0.83662924,224.2,224.07,23.776884]
[1734306124371,0.83662924,224.2,224.09,23.776884]
[1734306124597,6.6039,224.21,224.13,23.776884]
[1734306125392,0.83646277,224.25,224.13,23.776884]
[1734306125566,1.5258,224.26,224.15,0.12549]
[1734306125888,1.5258,224.26,224.17,23.776884]
[1734306126296,6.2164,224.28,224.18,0.12549]
[1734306126468,6.2164,224.28,224.21,23.776884]
[1734306126886,0.8361061,224.31,224.21,23.776884]
[1734306127092,2.34730352,224.32,224.21,23.776884]
[1734306127784,1.5113,224.32,224.21,23.776884]
[1734306127981,2.34724216,224.32,224.23,23.776884]
[1734306128318,1.5113,224.32,224.26,20.0]
[1734306128494,6.0721,224.33,224.27,23.776884]
[1734306129665,7.5834,224.38,224.27,23.776884]
[1734306129877,0.83577256,224.37,224.27,23.776884]
[1734306130989,6.0721,224.38,224.29,23.776884]
[1734306131691,6.0721,224.38,224.3,0.12549]
[1734306131878,6.0721,224.38,224.31,23.776884]
[1734306132086,6.0721,224.38,224.3,0.65651283]
[1734306132286,0.83565499,224.37,224.26,20.0]
[1734306132486,0.83565499,224.37,224.18,0.1]
[1734306132487,7.52095499,224.37,224.18,0.1]
[1734306132798,7.52095499,224.37,224.2,0.8]
[1734306134065,7.52095499,224.37,224.21,23.776884]
[1734306135073,7.52095499,224.37,224.22,20.0]
[1734306135274,7.52095499,224.37,224.19,23.902374]
[1734306135275,7.52095499,224.37,224.23,23.776884]
[1734306137287,7.52095499,224.37,224.24,20.0]
[1734306137475,7.52095499,224.37,224.25,23.776884]
[1734306137676,0.83565499,224.37,224.25,23.776884]
[1734306138077,0.83565499,224.37,224.19,0.6568563]
[1734306138396,0.83565499,224.37,224.25,20.0]
[1734306138698,6.6856,224.36,224.25,20.0]
[1734306138901,0.83602682,224.35,224.23,20.0]
[1734306139870,0.83602682,224.35,224.1,10.0]
[1734306139871,8.2378,224.34,224.11,0.1]
[1734306140068,0.12549,224.32,224.11,1.78333709]
[1734306140267,0.12549,224.32,224.1,1.5163]
[1734306140268,20.0,224.3,224.1,1.5163]
[1734306140477,20.83636669,224.29,224.11,0.8]
[1734306140678,20.83636669,224.29,224.08,1.78357497]
[1734306140888,0.83636669,224.29,224.09,0.12549]
[1734306141089,0.83636669,224.29,224.09,0.78331301]
[1734306141277,6.688,224.28,224.09,0.65782301]
[1734306141599,6.688,224.28,224.05,12.7743]
[1734306141600,0.83639232,224.27,224.08,0.07]
[1734306141779,7.649,224.25,224.08,0.07]
[1734306141980,0.83646851,224.24,224.06,0.12549]
[1734306142591,0.83646851,224.24,224.08,0.12549]
[1734306142895,0.83646851,224.24,224.04,6.3195]
[1734306142896,0.25098,224.17,223.94,11.1632]
[1734306143193,0.25098,224.17,223.95,0.07]
[1734306143194,0.12549,224.15,223.95,0.07]
[1734306143400,7.52912062,224.14,223.95,0.07]
[1734306144102,0.12549,224.11,223.9,0.65894053]
[1734306144285,1.08802298,224.11,223.91,0.07]
[1734306145170,0.12549,224.07,223.89,0.07]
[1734306145483,21.5878,224.05,223.88,0.5474998]
[1734306145678,0.83728765,224.04,223.88,0.5474998]
[1734306145879,6.6063,224.03,223.88,0.5474998]
[1734306146093,0.83731816,224.02,223.88,0.5474998]
[1734306146497,20.0,224.0,223.88,0.5474998]
[1734306146674,6.6063,224.03,223.88,0.5474998]
[1734306146675,20.0,223.98,223.88,0.5474998]
[1734306147004,0.8375476,223.97,223.88,0.5474998]
[1734306149691,0.83731717,223.99,223.88,0.5474998]
[1734306150586,20.83731717,223.99,223.88,0.5474998]
[1734306151480,0.83731717,223.99,223.88,0.5474998]
[1734306151691,0.83733446,223.98,223.88,0.5474998]
[1734306151981,0.83732302,224.01,223.88,0.5474998]
[1734306153707,0.83732302,224.01,223.9,23.776884]
[1734306156201,0.83732302,224.01,223.89,23.902374]
[1734306156391,0.83713521,224.02,223.89,23.902374]
[1734306156794,0.83713521,224.02,223.92,20.0]
[1734306157102,0.83713521,224.02,223.93,23.776884]
[1734306157498,0.83713521,224.02,223.89,23.902374]
[1734306157694,0.83713521,224.02,223.93,23.776884]
[1734306158588,0.83713521,224.02,223.91,23.776884]
[1734306158891,0.83708212,224.09,223.95,24.027864]
[1734306159099,0.83708212,224.09,223.97,23.902374]
[1734306160084,0.83708212,224.09,223.94,20.0]
[1734306160085,0.83708212,224.09,223.95,23.776884]
[1734306160284,0.83708212,224.09,223.96,0.12549]
[1734306160486,6.1668,224.1,223.99,23.902374]
[1734306160737,6.3051,224.16,224.03,23.776884]
[1734306160889,0.83666404,224.15,224.04,0.12549]
[1734306162015,0.83666404,224.15,224.06,20.0]
[1734306162197,6.3051,224.16,224.07,24.43502546]
[1734306162607,6.3051,224.16,224.11,23.776884]
[1734306162998,0.83661779,224.21,224.11,23.776884]
[1734306163206,6.4493,224.21,224.11,23.776884]
[1734306163922,6.4493,224.21,224.15,23.776884]
[1734306164497,7.52676179,224.2,223.98,25.24681238]
[1734306164696,0.12549,224.19,224.01,0.12549]
[1734306165019,0.83668132,224.18,224.01,0.12549]
[1734306165226,0.83668132,224.18,224.0,2.19408723]
[1734306165528,6.6913,224.17,224.0,1.5356]
[1734306165865,6.6913,224.17,223.98,6.4798]
[1734306165866,0.83680511,224.16,223.98,6.4798]
[1734306166249,0.83680511,224.16,223.99,0.12549]
[1734306166391,0.12549,224.11,223.88,25.40441218]
[1734306166589,1.08802577,224.11,223.9,0.12549]
[1734306167332,0.25098,224.09,223.89,2.44400634]
[1734306167506,0.83704978,224.08,223.89,2.44400634]
[1734306167714,0.83704978,224.08,223.92,0.12549]
[1734306168020,0.83704326,224.09,223.94,0.12549]
[1734306168226,20.0,224.11,223.98,0.12549]
[1734306168525,0.83684037,224.1,223.98,0.12549]
[1734306168721,0.83684037,224.1,223.99,0.12549]
[1734306168909,0.83681608,224.13,223.99,0.12549]
[1734306169230,0.83681608,224.13,223.98,0.12549]
[1734306169732,0.83681608,224.13,224.01,23.776884]
[1734306170431,0.83681608,224.13,224.04,20.0]
[1734306170604,0.83681608,224.13,224.05,23.776884]
[1734306171509,8.129,224.15,224.05,23.776884]
[1734306172196,6.5412,224.15,224.08,20.0]
[1734306172407,0.83660457,224.18,224.09,23.776884]
[1734306173227,0.83649391,224.19,224.09,23.776884]
[1734306174241,6.6506,224.2,224.13,23.776884]
[1734306174599,0.83632781,224.24,224.11,23.776884]
[1734306174906,0.83632781,224.24,224.14,20.0]
[1734306175104,0.83632781,224.24,224.15,23.776884]
[1734306175440,0.83632781,224.24,224.09,20.0]
[1734306175613,0.83632781,224.24,224.1,23.776884]
[1734306176125,0.83632781,224.24,224.0,6.2828]
[1734306176126,0.12549,224.18,224.0,6.2828]
[1734306176434,20.0,224.16,223.99,1.6469]
[1734306176601,0.83675893,224.15,224.0,0.65863212]
[1734306177002,0.83675893,224.15,224.01,0.12549]
[1734306177750,0.83675893,224.15,224.02,20.0]
[1734306177909,0.83670261,224.14,224.02,20.0]
[1734306178239,0.8366898,224.16,224.07,23.776884]
[1734306179036,0.83660993,224.18,224.07,23.776884]
[1734306180426,0.12549,224.16,223.99,1.6469]
[1734306180623,0.12549,224.16,223.98,1.78434987]
[1734306180624,20.0,224.14,223.98,1.78434987]
[1734306180874,20.0,224.14,223.94,1.78434987]
[1734306180875,6.4957,224.11,223.94,1.78434987]
[1734306181039,0.96252139,224.1,223.92,1.78434987]